Cogmind - Beta 17 --- EXPLORER MODE // 2026.08.17 @ 23:18:26 // AFD2018/Launchers Player: Goose Result: Destroyed by 8R-AWN with 8R-AWN's Boregun Performance ------------- Evolutions (0) 0 Regions Visited (3) 600 Robots Destroyed (12) 60 Value Destroyed (254) 254 Prototype IDs (25) 500 Alien Tech Used (0) 0 Bonus (213) 213 TOTAL SCORE: 1627 Bonus ------- Aligned with FarCom 300 Friendly Fire -87 Cogmind --------- Core Integrity 0/250 Matter 277/300 Energy 310/310 System Corruption 4% Temperature Cool (0) Movement Core (400) Ox7 Location -10/Exiles Parts ------- > --- POWER (1) -------- Reinforced Fission Core > --- PROPULSION (2) --- (None) > --- UTILITY (3) ------ EX Chip 1 EX Chip 1 EX Chip 2 > --- WEAPON (2) ------- Makeshift Sword > --- INVENTORY (5) ---- Light Ion Engine Small Matter Pod (31) Grenade Launcher Grenade Launcher Peak State ------------ > --- POWER ------------ Reinforced Fission Core > --- PROPULSION ------- (None) > --- UTILITY ---------- EX Chip 1 EX Chip 1 EX Chip 2 > --- WEAPON ----------- Makeshift Sword > --- INVENTORY -------- Light Ion Engine Small Matter Pod Grenade Launcher Grenade Launcher [Rating: 16] Favorites ----------- Power Light Ion Engine Engine Light Ion Engine Power Core Reinforced Fission Core Propulsion Wheel Wheel Wheel Utility Structural Scanner Device Structural Scanner Storage Small Matter Pod Hackware EX Chip 1 Weapon Grenade Launcher Launcher Grenade Launcher Slashing Weapon Makeshift Sword Build | -11 -10 -10 -10 ------- Run | Yrd Mat Min Exi Slots Evolved 1 | . 1 . . Power . | . . . . Propulsion . | . . . . Utility 1 | . 1 . . Weapon . | . . . . Parts Attached 20 | . 5 10 5 Power 3 | . . 2 1 Engine 2 | . . 2 . Core 1 | . . . 1 Reactor . | . . . . Propulsion 2 | . . 2 . Treads . | . . . . Leg . | . . . . Wheel 2 | . . 2 . Hover . | . . . . Flight . | . . . . Utility 7 | . . 4 3 Device 2 | . . 2 . Storage 2 | . . 2 . Processor . | . . . . Hackware 3 | . . . 3 Protection . | . . . . Artifact . | . . . . Weapon 8 | . 5 2 1 Energy Gun . | . . . . Energy Cannon . | . . . . Ballistic Gun . | . . . . Ballistic Cannon . | . . . . Launcher 7 | . 5 1 1 Special Weapon . | . . . . Impact Weapon . | . . . . Slashing Weapon 1 | . . 1 . Piercing Weapon . | . . . . Special Melee Weapon . | . . . . Unidentified Prototypes . | . . . . Parts Lost 6 | . . 1 5 Power 1 | . . . 1 Propulsion 2 | . . . 2 Utility . | . . . . Weapon 3 | . . 1 2 Highest Loss Streak 5 | . . 1 5 To Critical Strikes 4 | . . . 4 Average Backups 4 | 3 5 4 4 Power . | . . . 1 Propulsion . | . . . . Utility . | . . . 1 Weapon 4 | 3 5 3 2 Tool/Special . | . . . . Unused Backups 2 | . . . 2 Power . | . . . . Propulsion . | . . . . Utility . | . . . . Weapon 2 | . . . 2 Tool/Special . | . . . . Average Slot Usage (%) 52 | . 23 53 94 Engine 4 | . . 6 10 Wheel 8 | . . 9 22 Device 8 | . . 8 20 Storage 4 | . . 5 9 Hackware 1 | . . . 6 Launcher 17 | . 23 14 10 Slashing Weapon 6 | . . 8 12 Peak Build Rating 16 | . 2 11 16 Average Rating 5 | . 1 6 11 On Entrance 3 | . . 2 11 Avg Prop Armor Cover (%) . | . . . . Naked Turns 11 | . 11 . . Heaviest Build 23 | . 6 11 23 Greatest Support 20 | 3 3 20 20 Greatest Overweight (x) 7 | . 1 2 7 Average Overweight (x) . | . . . . Largest Inventory Capacity 5 | 5 5 5 5 Average Capacity 5 | 5 5 5 5 Most Carried 5 | 5 5 5 5 Average Carried 4 | 3 5 4 4 Final Capacity 5 | 5 5 5 5 Final Carried 5 | 5 5 5 4 Class Distribution -------------------- 69% | Hacker-Mutant 30% | Scavenger-Mutant Dominant Class ---------------- Hacker-Mutant | -10/Materials Hacker-Mutant | -10/Mines Scavenger-Mutant | -10/Exiles Resources | -11 -10 -10 -10 ----------- Run | Yrd Mat Min Exi Matter Collected 563 | . 144 316 103 Remotely . | . . . . Salvage Created 325 | . 98 216 11 Parts 13 | . 3 10 . Haulers Intercepted . | . . . . Recyclers Shooed . | . . . . Parts Field Recycled . | . . . . Retrieved Matter . | . . . . Parts Self-Destructed . | . . . . Prevented . | . . . . Parts Restored . | . . . . Kills | -11 -10 -10 -10 ------- Run | Yrd Mat Min Exi Combat Hostiles Destroyed 12 | . 6 2 4 Melee 3 | . . 2 1 AOE 9 | . 6 . 3 Classes Destroyed 6 | . 3 2 1 Worker 2 | . . 2 . Tunneler 1 | . . 1 . Watcher 1 | . 1 . . Swarmer 4 | . 2 2 . Grunt 4 | . 4 . . Assembled 4 | . . . 4 Best Kill Streak 4 | . 2 2 4 Combat Bots Only 4 | . 2 2 4 Max Kills in Single Turn 2 | . 2 1 2 Gunslinging . | . . . . Exploded 2 | . 2 . 2 Melee 1 | . . 1 1 Uniques/NPCs Destroyed 1 | . . . 1 EX-BIN (-10/Exiles) Combat | -11 -10 -10 -10 -------- Run | Yrd Mat Min Exi Hostile Shots Fired 86 | . 6 36 44 Missed 19 | . 1 9 9 Hits 67 | . 5 27 35 Projectile 67 | . 5 27 35 Critical Strikes 15 | . . . 15 Damage Taken 720 | . 139 175 406 Core 257 | . 34 58 165 Absorbed by Shields . | . . . . Ignored by Resistances 423 | . 84 92 247 Core Remaining (%) 100 | 100 . . . Volleys Fired 12 | . 8 1 3 Largest 2 | . 2 2 1 Hottest 60 | . 60 60 30 Shots Fired 22 | . 16 2 4 Gun . | . . . . Cannon . | . . . . Launcher 22 | . 16 2 4 Special . | . . . . Kinetic . | . . . . Thermal . | . . . . Explosive 22 | . 16 2 4 Electromagnetic . | . . . . Robot Hit Streak 7 | . 7 . 6 Robot Miss Streak 1 | . 1 . 1 Penetration Max . | . . . . Secondary Targets . | . . . . Shots Hit Robots 37 | . 11 10 16 Core Hits 35 | . 13 9 13 Critical Kills . | . . . . Critical Parts Destroyed . | . . . . Critical Strikes 2 | . . . 2 Sever 2 | . . . 2 Melee Attacks 23 | . . 10 13 Impact . | . . . . Slashing 23 | . . 10 13 Piercing . | . . . . Sneak Attacks 4 | . . 4 . Combat Hostiles . | . . . . Follow-up Attacks . | . . . . Damage Inflicted 1994 | . 538 768 688 Guns . | . . . . Cannons . | . . . . Explosions 732 | . 532 . 200 Melee 1176 | . . 693 483 Ramming 86 | . 6 75 5 Kinetic . | . . . . Thermal . | . . . . Explosive 732 | . 532 . 200 Electromagnetic . | . . . . Impact . | . . . . Slashing 1176 | . . 693 483 Piercing . | . . . . Highest Corruption 4 | . 2 4 4 Average Corruption 3 | . 2 3 4 Corruption Purged . | . . . . Corruption Blocked . | . . . . Effects 21 | . 2 11 8 Message Errors 4 | . 1 2 1 Matter Fused 8 | . 1 5 2 Heat Flow Errors 2 | . . . 2 Parts Fused 1 | . . . 1 Data Loss (minor) 2 | . . 2 . Data Loss (major) 2 | . . 1 1 Misfires 1 | . . . 1 Alerts 1 | . . 1 . Overload Shots . | . . . . Overflow Damage 342 | . 11 331 . Projectiles . | . . . . Explosions 11 | . 11 . . Melee 331 | . . 331 . Knockbacks . | . . . . Impact . | . . . . Kinetic . | . . . . Secondary . | . . . . Self-Inflicted Damage 130 | . 53 31 46 Shots 8 | . 5 . 3 Rammed 37 | . 2 34 1 Targets Rammed 37 | . 2 34 1 Kicked . | . . . . Crushed . | . . . . Highest Temperature 262 | . 5 . 262 Average Temperature 111 | . 3 . 128 Received Heat Transfer 33 | . 33 . . Siege Activations . | . . . . Martial Activations . | . . . . Shielding Activations . | . . . . Robots Disrupted . | . . . . Combat Hostiles . | . . . . Robots Corrupted . | . . . . Combat Hostiles . | . . . . Parts Fried 2 | . . 2 . Impact Corruptions 1 | . . 1 . Robots Melted . | . . . . Combat Hostiles . | . . . . Parts Melted . | . . . . Heat Transferred . | . . . . Parts Sabotaged . | . . . . Parts Stolen . | . . . . Parts Stripped . | . . . . Power Chain Reactions . | . . . . Alert | -11 -10 -10 -10 ------- Run | Yrd Mat Min Exi Maximum Alert Level . | . . . . Low Security (%) 100 | 100 100 100 . Level 1 . | . . . . Level 2 . | . . . . Level 3 . | . . . . Level 4 . | . . . . Level 5 . | . . . . High Security . | . . . . Max Security . | . . . . Peak Influence 118 | . 118 50 . Initial 13 | . . 13 . Average 26 | . 49 4 . Influence Increases 427 | . 332 95 . Destroy 0b10 Robot/C 160 | . 120 40 . Destroy 0b10 Robot/NC 35 | . 5 30 . Destroy Leader 42 | . 32 10 . Successful Hack 18 | . 18 . . Select Force Hacks 30 | . 30 . . Disable Machine 16 | . 4 12 . Destroy Structure 96 | . 93 3 . Lose Combat Pursuer 30 | . 30 . . Influence Decreases 427 | . 284 143 . Entered New Map 35 | . . 35 . Time Decay 392 | . 284 108 . Squads Dispatched 4 | . 4 . . Investigation 4 | . 4 . . Extermination . | . . . . Reinforcement . | . . . . Assault . | . . . . Garrison . | . . . . Intercept . | . . . . Searches Triggered . | . . . . Construction Impeded . | . . . . Haulers Reinforced . | . . . . Active Scanning Responses . | . . . . Cargo Convoy Interrupts . | . . . . Stealth | -11 -10 -10 -10 --------- Run | Yrd Mat Min Exi Distress Signals . | . . . . Communications Jammed . | . . . . Distress Signals . | . . . . Times Spotted 21 | . 11 2 8 Peak Tracking Total 9 | . 3 2 9 Tactical Retreats 1 | . 1 . . Traps | -11 -10 -10 -10 ------- Run | Yrd Mat Min Exi Traps Triggered 2 | . 2 . . Indirectly . | . . . . Trap Hack Attempts . | . . . . Triggered . | . . . . Disarmed . | . . . . Reprogrammed 1 | . 1 . . Reused . | . . . . Traps Extracted . | . . . . Installed . | . . . . Triggered . | . . . . Objects Rigged 3 | . 3 . . Machines | -11 -10 -10 -10 ---------- Run | Yrd Mat Min Exi Machines Disabled 9 | . 1 3 5 Max in Single Turn 3 | . 1 3 1 Machines Repaired . | . . . . Machines Dismantled . | . . . . Machines Sabotaged . | . . . . Overloaded Fab Kills . | . . . . Hacking | -11 -10 -10 -10 --------- Run | Yrd Mat Min Exi Machines Accessed 11 | . 7 . 4 Terminals 6 | . 6 . . Fabricators . | . . . . Repair Stations . | . . . . Recycling Units 1 | . 1 . . Scanalyzers . | . . . . Garrison Access . | . . . . Total Hacks 70 | . 43 . 27 Successful 58 | . 31 . 27 Failed 12 | . 12 . . Catastrophic 1 | . 1 . . Database Lockouts . | . . . . Manual 40 | . 38 . 2 Terminals 40 | . 40 . . Fabricators . | . . . . Repair Stations . | . . . . Recycling Units 3 | . 3 . . Scanalyzers . | . . . . Garrison Access . | . . . . Terminal Hacks 35 | . 8 . 27 Record 29 | . 3 . 26 Prototype ID Bank 1 | . 1 . . Branch Access Points 1 | . 1 . . Emergency Access Points 1 | . 1 . . Reprogram Traps 1 | . 1 . . Zone Layout 1 | . 1 . . Proto ID Catalog 1 | . . . 1 Fabricator Hacks . | . . . . Repair Station Hacks . | . . . . Recycling Unit Hacks . | . . . . Scanalyzer . | . . . . Garrison Access Hacks . | . . . . Unauthorized Hacks 23 | . 23 . . Terminals 21 | . 21 . . Track 4 | . 4 . . Assimilate 5 | . 5 . . Botnet 5 | . 5 . . Detonate 4 | . 4 . . Disrupt 3 | . 3 . . Fabricators . | . . . . Repair Stations . | . . . . Recycling Units 2 | . 2 . . Recyclers 1 | . 1 . . Tunnel 1 | . 1 . . Scanalyzers . | . . . . Garrison Access . | . . . . Data Cores Recovered . | . . . . Used . | . . . . Hacking Detections 7 | . 7 . . Full Trace Events 4 | . 4 . . Feedback Events . | . . . . Feedback Blocked . | . . . . Robot Schematics Acquired . | . . . . Robots Built . | . . . . Authchips . | . . . . Time . | . . . . Total Robot Build Rating . | . . . . Part Schematics Acquired . | . . . . Parts Built . | . . . . Authchips . | . . . . Time . | . . . . Total Part Build Rating . | . . . . Part Studies Acquired . | . . . . Parts Repaired . | . . . . Time . | . . . . Parts Recycled . | . . . . Recycled Matter . | . . . . Retrieved Matter . | . . . . Retrieved Components . | . . . . Parts Scanalyzed . | . . . . Part Schematics Acquired . | . . . . Parts Damaged . | . . . . Bothacking | -11 -10 -10 -10 ------------ Run | Yrd Mat Min Exi Used RIF Installer . | . . . . Robots Hacked . | . . . . Non-combat . | . . . . Combat . | . . . . Robot Hacks Applied . | . . . . Relay Couplers Released . | . . . . Fabnet Peak Effective % . | . . . . Robots Rewired . | . . . . Allies Hacked . | . . . . Hacks Repelled . | . . . . Allies | -11 -10 -10 -10 -------- Run | Yrd Mat Min Exi Total Allies 3 | . . 3 . Largest Group 3 | . . 3 3 Highest-Rated Group 40 | . . 40 40 Highest-Rated Ally 16 | . . 16 16 Total Orders . | . . . . Ally Attacks 26 | . . . 26 Total Damage 198 | . . . 198 Kills 4 | . . . 4 Allies Corrupted . | . . . . Allies Melted . | . . . . Intel | -11 -10 -10 -10 ------- Run | Yrd Mat Min Exi Active Infowar (turns) 487 | . . 240 247 Structural 487 | . . 240 247 Seismic 364 | . . 117 247 Robot Analysis Total . | . . . . Derelict Logs Recovered . | . . . . Drone Launches . | . . . . Drone Recoveries . | . . . . Exploration | -11 -10 -10 -10 ------------- Run | Yrd Mat Min Exi Turns Passed 1318 | 21 480 508 309 Spaces Moved 1311 | 33 453 497 328 Core 732 | 33 453 241 5 Treads . | . . . . Legs . | . . . . Wheels 579 | . . 256 323 Hover . | . . . . Flight . | . . . . Fastest Speed 50 | 50 50 50 50 Average Speed 87 | 50 96 85 81 Slowest Speed 400 | 50 100 150 400 Overloaded Moves . | . . . . Propulsion Burnouts . | . . . . Robots Hopped . | . . . . Potential Cave-ins . | . . . . Cave-ins Triggered . | . . . . Exploration Rate (%) 45 | 4 69 64 43 Regions Visited 3 Branch Regions 2 Pre-discovered Areas 1 | . 1 . . Known Exits Taken 3 | 1 1 1 . Unknown Exits Taken . | . . . . Scrap Searched . | . . . . Spaces Dug . | . . . . Terrain Destroyed 117 | . 100 3 14 Melee . | . . . . Projectile . | . . . . AOE 117 | . 100 3 14 Terrain Rammed . | . . . . Walls Destroyed . | . . . . Machines Disabled . | . . . . Actions | -11 -10 -10 -10 --------- Run | Yrd Mat Min Exi Total 1433 | 37 479 564 353 Wait 20 | . 10 10 . Move 1308 | 32 452 496 328 Hop . | . . . . Pick Up 5 | 5 . . . Fast Attach 14 | . 2 8 4 Attach 1 | . . . 1 Detach 1 | . . 1 . Swap 5 | . 3 2 . Drop 7 | . 2 2 3 Fire 12 | . 8 1 3 Melee 23 | . . 10 13 Ram 37 | . 2 34 1 Kick . | . . . . Crush . | . . . . Escape Stasis . | . . . . Rewire . | . . . . Trap . | . . . . Miscellaneous . | . . . . Route ------- -11/Scrapyard -10/Materials (discovered 2 exits: *Mat / *Min) -10/Mines -10/Exiles (discovered 1 exit: *Min) History --------- Turn | Location | Event 8 | -11/Scrapyard | Identified exit to Materials 8 | -11/Scrapyard | Discovered exit to Materials (range 16) 22 | -11/Scrapyard | Entered Materials 22 | -10/Materials | Evolved 1 slot: Utility x1 73 | -10/Materials | Identified exit to Mines 73 | -10/Materials | Discovered exit to Mines (range 7) 146 | -10/Materials | Identified exit to Materials 146 | -10/Materials | Discovered exit to Materials (range 16) 305 | -10/Materials | Build established: Hacker-Mutant 502 | -10/Materials | Entered Mines 638 | -10/Mines | A weapon hastily lodged in a ceiling crevice suddenly fell to the ground 806 | -10/Mines | Assisted by bots powering up and referring to "LRC-V3" 994 | -10/Mines | Deemed a non-threat by the Exiles lab entrance 994 | -10/Mines | Identified exit to Exiles 994 | -10/Mines | Discovered exit to Exiles (range 6) 1010 | -10/Mines | Entered Exiles 1010 | -10/Exiles | Accompanied by 3 allies 1032 | -10/Exiles | Identified exit to Mines 1032 | -10/Exiles | Discovered exit to Mines (range 14) 1049 | -10/Exiles | Met 8R-AWN 1063 | -10/Exiles | Met EX-HEX 1099 | -10/Exiles | Met EX-BIN 1116 | -10/Exiles | Aligned with FarCom system 1117 | -10/Exiles | Given EX-Vault access code 1161 | -10/Exiles | Build established: Scavenger-Mutant 1186 | -10/Exiles | Opened EX-Vault 1209 | -10/Exiles | Warned to stay clear of 0b10 Research branches 1223 | -10/Exiles | Attacked by the Exiles 1226 | -10/Exiles | Allies destroyed EX-BIN 1285 | -10/Exiles | Core integrity fell below 50% 1301 | -10/Exiles | Lost 3 allies 1306 | -10/Exiles | Core integrity fell below 20% 1319 | -10/Exiles | Destroyed by 8R-AWN with 8R-AWN's Boregun Last Messages --------------- 01287_ 8R-AWN Prototype Leg severed. 01289_ Penetrated by HV Slug. 01289_ Critical hit (Destroy). 01289_ Wheel destroyed. 01291_ Penetrated by HV Slug. 01294_ Critical hit (Destroy). 01294_ Grenade Launcher destroyed. 01300_ Penetrated by HV Slug. 01300_ Destroyed Prototype Protection. 01302_ 8R-AWN Rnf. Fission Core severed. 01303_ Penetrated by HV Slug. 01306_ Acquired Rnf. Fission Core. 01308_ Penetrated by HV Slug. 01309_ System corrupted: Matter fused (-8). 01310_ The unstable cave ceiling collapses. 01311_ Penetrated by HV Slug. 01311_ HV Slug penetrates Earth. 01315_ Penetrated by HV Slug. 01317_ HV Slug penetrates Earth. 01317_ Penetrated by HV Slug. Map ----- +----------------------------------------------------+ | ???????????##""X" ##?????????????????????? | | ???????????##" ##?????????????????????? | | ???????????##" ## ############???????????? | | ???????????##""""""## ############???????????? | | ???????????###"###### ###"""""""##???????????? | | ??????????? "###### ###"""""""##???????????? | | ???????????""" ##?### ###"""""""##???????????? | | ???????????""" ##?### ###"" " ""##???????????? | | ????????????"" ##?##" """"##???????????? | | ????????????#####?##" ""##???????????? | | ????????????#####?## ""##???????????? | | ??????????????????##" ""##???????????? | | ??????????????????##" ""## ??????????? | | ??????????????????## """## ??????????? | | ?????????????????#### ! """"""??????????? | | ?????????????????# ## !! """###??????????? | | ??????????????????# #" !! !X" """"" ??????????? | | ???????????????????#;" ! """ # ???????????? | | ?????????????????## # = """"""""# ???????????? | | ?????????????????# ##" ########## ???????????? | | ???????????????####; ##########???????????? | | ???????????????#### = ## ??????????????????? | | ??????????????"""""" *% ##############?????? | | ????????????"""" " "" # ###############????? | | ??????????" % # ###"""""""""####???? | | ???????????" " = @ " """ """"###???? | | ?????????? g "" " ##???? | | ?????????? " """##???? | | ?????????? " "###??? | | ?????????? " "#####? | | ?????????? ""####? | | ??????????? """""" """##? | | ??????????? ######"" "### | | ???????????? ""###########""" ### | | ????????????"?"###???#######""" ## | | ??????????????###????????###"""" # | | ??????????????????????????##"" | | ??????????????????????????#"""" | | ??????????????????????????" | | ????????????????????????? | | ????????????????????????? | | ????????????????????????? # | | ????????????????????????? " ## | | ????????????????????????? "" """ ""## | | ???????????????????????????"" " " ""#" "### | | ???????????????????????????###""" """##"""""""#### | | ???????????????????????????#####"""?#############? | | ??????????????????????????????####???###########?? | | ??????????????????????????????####???????????????? | | ?????????????????????????????????????????????????? | +----------------------------------------------------+ Best States ------------- Heat Dissipation 25 Energy Generation 19 Energy Capacity 310 Matter Stores 321 Matter Capacity 400 Sight Range 16 Terrain Scan Density 10 Resistance: KI 35 Resistance: TH 35 Resistance: EX 35 Resistance: EM 35 Resistance: I 35 Resistance: S 35 Resistance: P 35 Evasion (%) 50 Offensive Hacking 34 Defensive Hacking 7 Item Schematics ----------------- None Robot Schematics ------------------ None Fabricated ------------ Nothing Repaired ---------- Nothing Studied --------- None Alien Tech Used ----------------- None Achievements -------------- Fist Fight Challenges ------------ None Game ------ Seed ControlExpertProcsplitter Manual? 0 Play Time 00:17:02 Cumulative 524.2 hours Start 2026.08.17 @ 23:01:10 End 2026.08.17 @ 23:18:26 Sessions 2 Manual Loads 0 Difficulty Explorer Special Mode AFD2018/Launchers Game No. 29 Rogue 5 Adventurer 1 Explorer 23 Win Type - Total 5 Types 5/0/0/0/0/0/0/0/0/0 Lore% 52 Gallery% 53 Achievement% 49 Wizard Run 0 Options --------- Layout 0 ASCII 0 Keyboard 0 Movement Arrows Keybinds 0 Fullscreen 2 Font 18/X11 Map View 38x25 Zoom Use 99% Tactical HUD 1 Map Filters NONE Filters NONE Steam 1 RUN: 2923035e-07bf-4a71-9ae7-ecd657ae3e24